Cogmind - Beta 14 @@@ ROGUE MODE // 2025.03.17 @ 19:36:29 Player: potator Result: Destroyed by 5V-AX5(R) with Subdweller Machine Gun Performance ------------- Evolutions (0) 0 Regions Visited (2) 400 Robots Destroyed (19) 95 Value Destroyed (473) 473 Prototype IDs (0) 0 Alien Tech Used (0) 0 Bonus (0) 0 TOTAL SCORE: 968 Bonus ------- None Cogmind --------- Core Integrity 0/250 Matter 260/300 Energy 179/200 System Corruption 0% Temperature Cool (0) Movement Treading (160) Location -10/Subcaves Parts ------- > --- POWER (1) -------- Subdweller Power Source > --- PROPULSION (2) --- Light Treads Spiked Treads > --- UTILITY (2) ------ Large Storage Unit Signal Interpreter > --- WEAPON (2) ------- Subdweller Laser Battle Cannon > --- INVENTORY (15) --- Ion Engine Light Nuclear Core Neutrino Core Light Treads Improved Heat Sink Small Storage Unit Subdweller Optics Seismic Detector Scrap Shield Assault Rifle Bore Cannon Grenade Launcher Datajack Peak State ------------ > --- POWER ------------ Neutrino Core > --- PROPULSION ------- Light Treads Light Treads > --- UTILITY ---------- Large Storage Unit Signal Interpreter > --- WEAPON ----------- Beam Cannon Bore Cannon > --- INVENTORY -------- Ion Engine Light Nuclear Core Heat Sink Small Storage Unit Seismic Detector Scrap Shield Assault Rifle Assault Rifle Assault Rifle Grenade Launcher Datajack [Rating: 17] Favorites ----------- Power Ion Engine Engine Ion Engine Power Core Light Nuclear Core Propulsion Light Treads Treads Light Treads Utility Large Storage Unit Device Heat Sink Storage Large Storage Unit Processor Signal Interpreter Weapon Assault Rifle Energy Gun Subdweller Laser Energy Cannon Beam Cannon Ballistic Gun Assault Rifle Ballistic Cannon Battle Cannon Build | -11 -10 -10 ------- Run | Yrd Mat Sub Slots Evolved . | . . . Power . | . . . Propulsion . | . . . Utility . | . . . Weapon . | . . . Parts Attached 25 | 6 11 8 Power 7 | 1 3 3 Engine 4 | 1 2 1 Core 3 | . 1 2 Reactor . | . . . Propulsion 5 | 2 2 1 Treads 5 | 2 2 1 Leg . | . . . Wheel . | . . . Hover . | . . . Flight . | . . . Utility 5 | 1 4 . Device 2 | . 2 . Storage 2 | 1 1 . Processor 1 | . 1 . Hackware . | . . . Protection . | . . . Artifact . | . . . Weapon 8 | 2 2 4 Energy Gun 1 | . . 1 Energy Cannon 1 | . . 1 Ballistic Gun 4 | 2 2 . Ballistic Cannon 2 | . . 2 Launcher . | . . . Special Weapon . | . . . Impact Weapon . | . . . Slashing Weapon . | . . . Piercing Weapon . | . . . Special Melee Weapon . | . . . Unidentified Prototypes . | . . . Parts Lost . | . . . Power . | . . . Propulsion . | . . . Utility . | . . . Weapon . | . . . Highest Loss Streak . | . . . To Critical Strikes . | . . . Average Slot Usage (%) 98 | . 96 100 Engine 8 | . 12 2 Core 5 | . 1 11 Treads 28 | . 28 28 Device 2 | . 4 . Storage 14 | . 14 14 Processor 9 | . 6 14 Energy Cannon 3 | . . 9 Ballistic Gun 18 | . 28 3 Ballistic Cannon 4 | . . 12 Peak Build Rating 17 | 6 10 17 Average Rating 9 | 4 7 12 On Entrance 5 | . 6 10 Naked Turns . | . . . Heaviest Build 46 | 14 30 46 Greatest Support 40 | 40 40 40 Greatest Overweight (x) 1 | . . 1 Average Overweight (x) . | . . . Largest Inventory Capacity 15 | 8 15 15 Average Capacity 14 | 6 14 15 Most Carried 15 | 3 11 15 Average Carried 8 | . 5 13 Final Capacity 15 | 8 15 15 Final Carried 14 | . 11 14 Class Distribution -------------------- 100% | Mutant Dominant Class ---------------- Mutant | -10/Materials Mutant | -10/Subcaves Resources | -11 -10 -10 ----------- Run | Yrd Mat Sub Matter Collected 727 | 196 299 232 Remotely . | . . . Salvage Created 571 | . 481 90 Parts 39 | . 35 4 Haulers Intercepted . | . . . Recyclers Shooed . | . . . Parts Field Recycled . | . . . Retrieved Matter . | . . . Parts Self-Destructed . | . . . Prevented . | . . . Kills | -11 -10 -10 ------- Run | Yrd Mat Sub Combat Hostiles Destroyed 16 | . 14 2 Guns 14 | . 14 . Cannons 2 | . . 2 Classes Destroyed 4 | . 3 1 Watcher 3 | . 3 . Swarmer 6 | . 6 . Grunt 8 | . 8 . Subdweller 2 | . . 2 Best Kill Streak 7 | . 7 1 Combat Bots Only 6 | . 6 1 Max Kills in Single Turn 1 | . 1 1 Gunslinging . | . . . Exploded . | . . . Melee . | . . . Uniques/NPCs Destroyed . | . . . Combat | -11 -10 -10 -------- Run | Yrd Mat Sub Hostile Shots Fired 102 | . 81 21 Missed 30 | . 22 8 Damage Taken 811 | . 535 276 Core 252 | . 104 148 Absorbed by Shields . | . . . Core Remaining (%) 100 | 100 . . Volleys Fired 55 | . 44 11 Largest 2 | . 2 2 Hottest 117 | . 40 117 Shots Fired 108 | . 88 20 Gun 94 | . 88 6 Cannon 14 | . . 14 Launcher . | . . . Special . | . . . Kinetic 99 | . 88 11 Thermal 9 | . . 9 Explosive . | . . . Electromagnetic . | . . . Robot Hit Streak 7 | . 7 6 Robot Miss Streak 4 | . 3 4 Penetration Max . | . . . Secondary Targets 5 | . 5 . Max Gunslinging Chain 1 | . 1 . Shots Hit Robots 65 | . 55 10 Core Hits 29 | . 25 4 Critical Kills . | . . . Critical Parts Destroyed . | . . . Critical Strikes . | . . . Melee Attacks . | . . . Impact . | . . . Slashing . | . . . Piercing . | . . . Sneak Attacks . | . . . Combat Hostiles . | . . . Follow-up Attacks . | . . . Damage Inflicted 845 | . 708 137 Guns 752 | . 708 44 Cannons 93 | . . 93 Explosions . | . . . Melee . | . . . Ramming . | . . . Kinetic 771 | . 708 63 Thermal 74 | . . 74 Explosive . | . . . Electromagnetic . | . . . Impact . | . . . Slashing . | . . . Piercing . | . . . Highest Corruption . | . . . Average Corruption . | . . . Corruption Purged . | . . . Corruption Blocked . | . . . Overload Shots . | . . . Overflow Damage . | . . . Projectiles . | . . . Explosions . | . . . Melee . | . . . Knockbacks . | . . . Impact . | . . . Kinetic . | . . . Secondary . | . . . Self-Inflicted Damage . | . . . Shots . | . . . Rammed . | . . . Targets Rammed . | . . . Kicked . | . . . Crushed . | . . . Highest Temperature 9 | . 5 9 Average Temperature 4 | . 3 4 Received Heat Transfer 162 | . 114 48 Siege Activations . | . . . Robots Corrupted . | . . . Combat Hostiles . | . . . Parts Fried . | . . . Impact Corruptions . | . . . Robots Melted . | . . . Combat Hostiles . | . . . Parts Melted 1 | . . 1 Heat Transferred 136 | . . 136 Parts Sabotaged . | . . . Parts Stolen . | . . . Parts Stripped . | . . . Power Chain Reactions . | . . . Alert | -11 -10 -10 ------- Run | Yrd Mat Sub Peak Influence 286 | . 286 . Initial . | . . . Average 77 | . 80 . Maximum Alert Level 1 | . 1 . Low Security (%) 89 | 100 89 . Level 1 10 | . 10 . Level 2 . | . . . Level 3 . | . . . Level 4 . | . . . Level 5 . | . . . High Security . | . . . Max Security . | . . . Squads Dispatched 3 | . 3 . Investigation 1 | . 1 . Extermination . | . . . Reinforcement 2 | . 2 . Assault . | . . . Garrison . | . . . Intercept . | . . . Searches Triggered . | . . . Construction Impeded . | . . . Haulers Reinforced . | . . . Active Scanning Responses . | . . . Cargo Convoy Interrupts . | . . . Stealth | -11 -10 -10 --------- Run | Yrd Mat Sub Distress Signals 2 | . 2 . Communications Jammed . | . . . Distress Signals . | . . . Times Spotted 36 | . 25 11 Peak Tracking Total 9 | . 9 5 Tactical Retreats 1 | . 1 . Traps | -11 -10 -10 ------- Run | Yrd Mat Sub Traps Triggered 1 | . 1 . Indirectly . | . . . Trap Hack Attempts . | . . . Triggered . | . . . Disarmed . | . . . Reprogrammed . | . . . Reused . | . . . Traps Extracted . | . . . Installed . | . . . Triggered . | . . . Machines | -11 -10 -10 ---------- Run | Yrd Mat Sub Machines Disabled . | . . . Max in Single Turn . | . . . Machines Repaired . | . . . Machines Dismantled . | . . . Machines Sabotaged . | . . . Overloaded Fab Kills . | . . . Hacking | -11 -10 -10 --------- Run | Yrd Mat Sub Machines Accessed 8 | . 7 1 Terminals 7 | . 7 . Fabricators . | . . . Repair Stations . | . . . Recycling Units . | . . . Scanalyzers . | . . . Garrison Access . | . . . Total Hacks 23 | . 20 3 Successful 14 | . 11 3 Failed 9 | . 9 . Catastrophic 1 | . 1 . Database Lockouts . | . . . Manual . | . . . Terminals 20 | . 20 . Fabricators . | . . . Repair Stations . | . . . Recycling Units . | . . . Scanalyzers . | . . . Garrison Access . | . . . Terminal Hacks 14 | . 11 3 Record 4 | . 1 3 Emergency Access Points 1 | . 1 . Locate Traps 3 | . 3 . Dispatch Records 1 | . 1 . Investigation Status 1 | . 1 . Hauler Manifests 1 | . 1 . Zone Layout 3 | . 3 . Fabricator Hacks . | . . . Repair Station Hacks . | . . . Recycling Unit Hacks . | . . . Scanalyzer . | . . . Garrison Access Hacks . | . . . Unauthorized Hacks . | . . . Terminals . | . . . Fabricators . | . . . Repair Stations . | . . . Recycling Units . | . . . Scanalyzers . | . . . Garrison Access . | . . . Data Cores Recovered . | . . . Used . | . . . Hacking Detections 5 | . 5 . Full Trace Events . | . . . Feedback Events . | . . . Feedback Blocked . | . . . Robot Schematics Acquired . | . . . Robots Built . | . . . Authchips . | . . . Time . | . . . Total Robot Build Rating . | . . . Part Schematics Acquired . | . . . Parts Built . | . . . Authchips . | . . . Time . | . . . Total Part Build Rating . | . . . Parts Repaired . | . . . Time . | . . . Parts Recycled . | . . . Recycled Matter . | . . . Retrieved Matter . | . . . Retrieved Components . | . . . Parts Scanalyzed . | . . . Part Schematics Acquired . | . . . Parts Damaged . | . . . Bothacking | -11 -10 -10 ------------ Run | Yrd Mat Sub Used RIF Installer . | . . . Robots Hacked . | . . . Non-combat . | . . . Combat . | . . . Robot Hacks Applied . | . . . Relay Couplers Released . | . . . Fabnet Peak Effective % . | . . . Robots Rewired . | . . . Allies Hacked . | . . . Hacks Repelled . | . . . Allies | -11 -10 -10 -------- Run | Yrd Mat Sub Total Allies . | . . . Largest Group . | . . . Highest-Rated Group . | . . . Highest-Rated Ally . | . . . Total Orders . | . . . Ally Attacks . | . . . Total Damage . | . . . Kills . | . . . Allies Corrupted . | . . . Allies Melted . | . . . Intel | -11 -10 -10 ------- Run | Yrd Mat Sub Robot Analysis Total . | . . . Derelict Logs Recovered . | . . . Drone Launches . | . . . Drone Recoveries . | . . . Exploration | -11 -10 -10 ------------- Run | Yrd Mat Sub Turns Passed 2590 | 55 1532 1003 Spaces Moved 1438 | 33 821 584 Core 8 | 8 . . Treads 1430 | 25 821 584 Legs . | . . . Wheels . | . . . Hover . | . . . Flight . | . . . Fastest Speed 50 | 50 160 160 Average Speed 159 | 133 160 160 Slowest Speed 240 | 160 160 240 Overloaded Moves . | . . . Propulsion Burnouts . | . . . Robots Hopped . | . . . Cave-ins Triggered . | . . . Exploration Rate (%) 43 | 4 99 26 Regions Visited 2 Branch Regions 1 Pre-discovered Areas . | . . . Known Exits Taken 1 | . 1 . Unknown Exits Taken 1 | 1 . . Scrap Searched 7 | . . 7 Spaces Dug . | . . . Terrain Destroyed 1 | . . 1 Melee . | . . . Projectile 1 | . . 1 AOE . | . . . Terrain Rammed . | . . . Walls Destroyed . | . . . Machines Disabled . | . . . Actions | -11 -10 -10 --------- Run | Yrd Mat Sub Total 1626 | 44 948 634 Wait 72 | . 57 15 Move 1436 | 32 820 584 Hop . | . . . Pick Up 29 | 6 14 9 Fast Attach . | . . . Attach 7 | 6 1 . Detach . | . . . Swap 18 | . 10 8 Drop 9 | . 2 7 Fire 55 | . 44 11 Melee . | . . . Ram . | . . . Kick . | . . . Crush . | . . . Escape Stasis . | . . . Rewire . | . . . Trap . | . . . Miscellaneous . | . . . Route ------- -11/Scrapyard -10/Materials (discovered 6 exits: *Mat x3 / *Min x2 / *Sub) -10/Subcaves History --------- Turn | Location | Event 6 | -11/Scrapyard | Discovered new exit (range 14) 56 | -11/Scrapyard | Entered Materials 207 | -10/Materials | Discovered new exit (range 12) 315 | -10/Materials | Build established: Mutant 524 | -10/Materials | Discovered new exit (range 15) 772 | -10/Materials | Discovered new exit (range 14) 806 | -10/Materials | Discovered new exit (range 16) 877 | -10/Materials | Identified exit to Materials 1175 | -10/Materials | Identified exit to Mines 1321 | -10/Materials | Discovered exit to Materials (range 16) 1577 | -10/Materials | Discovered new exit (range 8) 1587 | -10/Materials | Identified exit to Subcaves 1588 | -10/Materials | Entered Subcaves 1705 | -10/Subcaves | Ambushed by swarm of Subdwellers 1714 | -10/Subcaves | Core integrity fell below 50% 2418 | -10/Subcaves | Shifting Twisted Machinery released Sub. Power Source 2428 | -10/Subcaves | Shifting Twisted Machinery released Sub. Power Source 2550 | -10/Subcaves | Core integrity fell below 20% 2559 | -10/Subcaves | Visited Clippyterm 2564 | -10/Subcaves | Learned Research security intel 2591 | -10/Subcaves | Destroyed by 5V-AX5(R) with Subdweller Machine Gun Last Messages --------------- The door opens automatically. SX-ZWD(g) destroyed. Connecting with Clippyterm... >>Record! "Clippyterm" Welcome to Clippyterm v0.53, my misguided attempt to resurrect an ancient AI. I give up. There must be something fundamentally wrong with the algorithm, because no matter how much data I collect to feed it, half the time it still manages to suggest unhelpful sample queries and responses. --DD-NU8 >>Record! "0b10 Defenses" It looks like you're afraid of guards, would you like help? Data stored: Research security intel. >>Record! "Permadeath" It looks like you're defining "roguelike," quit while you're ahead. Please. Acquired Imp. Heat Sink. Dropped Heat Sink. Map ----- +----------------------------------------------------+ | ?????????????????????????????????????????????????? | | ##???????????????????????????????????????????????? | | "#???????????????????????????????????????????????? | | "#???????????????????????????????????????????????? | | "#???????????????????????????????????????????????? | | "#?############??????????????????????????????????? | | ### " #"" #??????????????????????????????????? | | " " """ ##??????????????????????????????????? | | "" ""##### #???????????????????????????????????? | | # ""##### #???????????????????????????????????? | | # ## ## ##??????????????????????????????????? | | ###" #??#######?????????????????????????? | | ??#" #??#"""""#?????????????????????????? | | ??#### # # ##??#""X""#?????????????????????????? | | ?????###### #???#" "#?????????????????????????? | | ??????????# #???### ###?????????????????????????? | | ?????????## ####### ###?????????????????????????? | | ?????????# # ## #?????????????????????????? | | ?????????# """##????????????????????????? | | ?????????# ####!%"##"####?????????????????????? | | ?????????# ##??##= " #?????????????????????? | | ?????????## ????## "" ##?????????????????????? | | ????????? #????## ###??????????? #?????????? | | ???????? ## ## # ##???#### #????????? | | ??????? "R g ## #??????????? | | ?????? #### """ !@ #???????????? | | ????? ????### """" [%& #???????????? | | ???? ???????? ?"""""" * #???????????? | | ??? ????????? ?"""""" ## ?????????? | | ????????????? ##"""""""""" #??? #?????????? | | ????????????? #?## """###""" "" ????????????????? | | ????????????? ???# "#??#### ??????????????? | | ?????????????#????## ??????? ??????????????? | | ???????????????????# ???????? ?????????????? | | ???????????????????# ?????????? ??????????????? | | ????????????????????????????????? ##?????????????? | | ?????????????????????????????????##??????????????? | | ?????????????????????????????????????????????????? | | ?????????????????????????????????????????????????? | | ?????????????????????????????????????????????????? | | ?????????????????????????????????????????????????? | | ?????????????????????????????????????????????????? | | ?????????????????????????????????????????????????? | | ?????????????????????????????????????????????????? | | ?????????????????????????????????????????????????? | | ?????????????????????????????????????????????????? | | ?????????????????????????????????????????????????? | | ?????????????????????????????????????????????????? | | ?????????????????????????????????????????????????? | | ?????????????????????????????????????????????????? | +----------------------------------------------------+ Best States ------------- Heat Dissipation 35 Energy Generation 15 Energy Capacity 250 Matter Stores 300 Matter Capacity 300 Sight Range 16 Terrain Scan Density 10 Evasion (%) 40 Recoil Reduction 2 Item Schematics ----------------- None Robot Schematics ------------------ None Fabricated ------------ Nothing Alien Tech Used ----------------- None Achievements -------------- None Challenges ------------ None Game ------ Seed ArcPotentialCharge Manual? 0 Play Time 00:21:56 Cumulative 12.9 hours Start 2025.03.17 @ 19:14:16 End 2025.03.17 @ 19:36:29 Sessions 1 Manual Loads 0 Difficulty Rogue Special Mode None Game No. 24 Rogue 24 Adventurer 0 Explorer 0 Win Type - Total 0 Types 0/0/0/0/0/0/0/0/0 Lore% 9 Gallery% 16 Achievement% 14 Wizard Run 0 Options --------- Layout 1 ASCII 0 Keyboard 0 Movement Mouse Keybinds 0 Fullscreen 2 Font 24/Smallcaps Map View 50x35 Zoom Use 0% Tactical HUD 0 Map Filters NONE Filters NONE Steam 1 RUN: f8a5e101-5c24-4337-b251-4024db36889e